Workbook

Sheet Sheet1
A1: VEHICLE FUEL PRICE AND MILES PER GALLON | G1: 2015-04-01 | H1: rev
B3: Sheet 1: Price and MPH by Year
I4: $PG | J4: Dollars per gallon adjusted to 2005 equivalents
A5: MPG Data | B5: http://epa.gov/fueleconomy/fetrends/1975-2014/420r14023a.pdf | I5: MPG | J5: Miles per gallon
A6: Price Data | B6: http://www.eia.gov/totalenergy/data/annual/showtext.cfm?t=ptb0524 | I6: GPM | J6: Gallons per mile
A8: Year | B8: $PG in 2005 $ | C8: MPG | D8: GPM
A9: 1970 | B9: 1.467
A10: 1971 | B10: 1.424
A11: 1972 | B11: 1.354
A12: 1973 | B12: 1.379
A13: 1974 | B13: 1.733
A14: 1975 | B14: 1.69 | C14: 13.1 | D14: 0.07633587786
A15: 1976 | B15: 1.69 | C15: 14.2 | D15: 0.07042253521
A16: 1977 | B16: 1.68 | C16: 15.1 | D16: 0.06622516556
A17: 1978 | B17: 1.61 | C17: 15.8 | D17: 0.06329113924
A18: 1979 | B18: 2.01 | C18: 15.9 | D18: 0.06289308176
A19: 1980 | B19: 2.56 | C19: 19.2 | D19: 0.05208333333
A20: 1981 | B20: 2.59 | C20: 20.5 | D20: 0.0487804878
A21: 1982 | B21: 2.31 | C21: 21.1 | D21: 0.04739336493
A22: 1983 | B22: 2.13 | C22: 21 | D22: 0.04761904762
A23: 1984 | B23: 2 | C23: 21 | D23: 0.04761904762
A24: 1985 | B24: 1.94 | C24: 21.3 | D24: 0.04694835681
A25: 1986 | B25: 1.48 | C25: 21.8 | D25: 0.04587155963
A26: 1987 | B26: 1.48 | C26: 22 | D26: 0.04545454545
A27: 1988 | B27: 1.44 | C27: 21.9 | D27: 0.04566210046
A28: 1989 | B28: 1.52 | C28: 21.4 | D28: 0.04672897196
A29: 1990 | B29: 1.68 | C29: 21.2 | D29: 0.04716981132
A30: 1991 | B30: 1.6 | C30: 21.3 | D30: 0.04694835681
A31: 1992 | B31: 1.55 | C31: 20.8 | D31: 0.04807692308
A32: 1993 | B32: 1.5 | C32: 20.9 | D32: 0.04784688995
A33: 1994 | B33: 1.47 | C33: 20.4 | D33: 0.04901960784
A34: 1995 | B34: 1.48 | C34: 20.5 | D34: 0.0487804878
A35: 1996 | B35: 1.55 | C35: 20.4 | D35: 0.04901960784
A36: 1997 | B36: 1.53 | C36: 20.2 | D36: 0.0495049505
A37: 1998 | B37: 1.3 | C37: 20.1 | D37: 0.04975124378
A38: 1999 | B38: 1.41 | C38: 19.7 | D38: 0.05076142132
A39: 2000 | B39: 1.76 | C39: 19.8 | D39: 0.05050505051
A40: 2001 | B40: 1.69 | C40: 19.6 | D40: 0.05102040816
A41: 2002 | B41: 1.56 | C41: 19.5 | D41: 0.05128205128
A42: 2003 | B42: 1.74 | C42: 19.6 | D42: 0.05102040816
A43: 2004 | B43: 1.99 | C43: 19.3 | D43: 0.0518134715 | X43: X | Y43: a | Z43: b | AA43: Yc
A44: 2005 | B44: 2.34 | C44: 19.9 | D44: 0.05025125628 | X44: 1.95 | Y44: 0.0189 | Z44: 0.0926 | AA44: =-(X44*Y44)+Z44 -> 0.055745
A45: 2006 | B45: 2.56 | C45: 20.1 | D45: 0.04975124378 | X45: 2.05 | Y45: 0.0189 | Z45: 0.0926 | AA45: =-(X45*Y45)+Z45 -> 0.053855
A46: 2007 | B46: 2.68 | C46: 20.6 | D46: 0.04854368932 | X46: =X45-X44 -> 0.1 | AA46: =AA45-AA44 -> -0.00189 | AB46: Delta
A47: 2008 | B47: 3.06 | C47: 21 | D47: 0.04761904762 | X47: =X46/X44 -> 0.05128205128 | AA47: =AA46/AA44 -> -0.03390438604 | AB47: % Delta
A48: 2009 | B48: 2.19 | C48: 22.4 | D48: 0.04464285714 | AA48: =AA47/X47 -> -0.6611355279 | AB48: Elasticity
A49: 2010 | B49: 2.56 | C49: 22.6 | D49: 0.04424778761
A50: 2011 | C50: 22.4 | D50: 0.04464285714
A51: 2012 | C51: 23.6 | D51: 0.04237288136
A52: 2013 | C52: 24.1 | D52: 0.04149377593
A53: 2014 | C53: 24.2 | D53: 0.04132231405
X58: X | Y58: a | Z58: b | AA58: Yc
X59: 2.15 | Y59: 0.006 | Z59: 0.0589 | AA59: =-(X59*Y59)+Z59 -> 0.046 | AB59: X1 Y1
X60: 2.25 | Y60: 0.006 | Z60: 0.0589 | AA60: =-(X60*Y60)+Z60 -> 0.0454 | AB60: X2 Y2
X61: =X60-X59 -> 0.1 | AA61: =AA60-AA59 -> -0.0006 | AB61: Delta
X62: =X61/X59 -> 0.04651162791 | AA62: =AA61/AA59 -> -0.01304347826 | AB62: % Delta
AA63: =AA62/X62 -> -0.2804347826 | AB63: Elasticity

Sheet Sheet2
E1: VEHICLE FUEL PRICE AND MILES PER GALLON | H1: rev | M1: 2015-04-01 | N1: rev
F3: Sheet 2: Correlation between MPG and $PG | Q3: $PG | R3: Dollars per gallon adjusted to 2005 equivalents
Q4: MPG | R4: Miles per gallon
E5: MPG Data | F5: http://epa.gov/fueleconomy/fetrends/1975-2014/420r14023a.pdf | Q5: GPM | R5: Gallons per mile
E6: Price Data | F6: http://www.eia.gov/totalenergy/data/annual/showtext.cfm?t=ptb0524 | Q6: a and b | R6: Coeffients from trendline on chart
A8: Year | B8: Price in 2005 $ | C8: MPG | D8: GPM | E8: Year | F8: Price in 2005 $ | G8: Year | I8: MPG | Q8: MPG = ( $PG x a ) + b | U8: GPM = 1 / MPG
A9: 1970 | B9: 1.467 | E9: 1973 | F9: 1.379 | G9: 1975 | H9: 1.69 | I9: 13.1
A10: 1971 | B10: 1.424 | E10: 1974 | F10: 1.733 | G10: 1976 | H10: 1.69 | I10: 14.2 | Q10: $PG | R10: a | S10: b | T10: MPG | U10: GPM | V10: Statistic
A11: 1972 | B11: 1.354 | E11: 1975 | F11: 1.69 | G11: 1977 | H11: 1.68 | I11: 15.1 | Q11: 1.95 | R11: 6.007 | S11: 6.0144 | T11: =(Q11*R11)+S11 -> 17.72805 | U11: =1/T11 -> 0.05640778315
A12: 1973 | B12: 1.379 | E12: 1976 | F12: 1.69 | G12: 1978 | H12: 1.61 | I12: 15.8 | Q12: 2.05 | R12: 6.007 | S12: 6.0144 | T12: =(Q12*R12)+S12 -> 18.32875 | U12: =1/T12 -> 0.05455909432
A13: 1974 | B13: 1.733 | E13: 1977 | F13: 1.68 | G13: 1979 | H13: 2.01 | I13: 15.9 | Q13: =Q12-Q11 -> 0.1 | U13: =U12-U11 -> -0.001848688827 | V13: Delta
A14: 1975 | B14: 1.69 | C14: 13.1 | D14: 0.07633587786 | E14: 1978 | F14: 1.61 | G14: 1980 | H14: 2.56 | I14: 19.2 | Q14: =Q13/Q11 -> 0.05128205128 | U14: =U13/U11 -> -0.03277364796 | V14: % Delta
A15: 1976 | B15: 1.69 | C15: 14.2 | D15: 0.07042253521 | E15: 1979 | F15: 2.01 | G15: 1981 | H15: 2.59 | I15: 20.5 | U15: =U14/Q14 -> -0.6390861352 | V15: Price Elasticity
A16: 1977 | B16: 1.68 | C16: 15.1 | D16: 0.06622516556 | E16: 1980 | F16: 2.56 | G16: 1982 | H16: 2.31 | I16: 21.1
A17: 1978 | B17: 1.61 | C17: 15.8 | D17: 0.06329113924 | E17: 1981 | F17: 2.59 | G17: 1983 | H17: 2.13 | I17: 21
A18: 1979 | B18: 2.01 | C18: 15.9 | D18: 0.06289308176
A19: 1980 | B19: 2.56 | C19: 19.2 | D19: 0.05208333333
A20: 1981 | B20: 2.59 | C20: 20.5 | D20: 0.0487804878
A21: 1982 | B21: 2.31 | C21: 21.1 | D21: 0.04739336493
A22: 1983 | B22: 2.13 | C22: 21 | D22: 0.04761904762 | E22: Year | F22: Price in 2005 $ | G22: Year | I22: MPG
A23: 1984 | B23: 2 | C23: 21 | D23: 0.04761904762 | E23: 1999 | F23: 1.41 | G23: 2004 | H23: 1.99 | I23: 19.3
A24: 1985 | B24: 1.94 | C24: 21.3 | D24: 0.04694835681 | E24: 2000 | F24: 1.76 | G24: 2005 | H24: 2.34 | I24: 19.9 | Q24: $PG | R24: a | S24: b | T24: MPG | U24: GPM | V24: Statistic
A25: 1986 | B25: 1.48 | C25: 21.8 | D25: 0.04587155963 | E25: 2001 | F25: 1.69 | G25: 2006 | H25: 2.56 | I25: 20.1 | Q25: 2.15 | R25: 2.8042 | S25: 15.77 | T25: =(Q25*R25)+S25 -> 21.79903 | U25: =1/T25 -> 0.0458736008
A26: 1987 | B26: 1.48 | C26: 22 | D26: 0.04545454545 | E26: 2002 | F26: 1.56 | G26: 2007 | H26: 2.68 | I26: 20.6 | Q26: 2.25 | R26: 2.8042 | S26: 15.77 | T26: =(Q26*R26)+S26 -> 22.07945 | U26: =1/T26 -> 0.04529098324
A27: 1988 | B27: 1.44 | C27: 21.9 | D27: 0.04566210046 | E27: 2003 | F27: 1.74 | G27: 2008 | H27: 3.06 | I27: 21 | Q27: =Q26-Q25 -> 0.1 | U27: =U26-U25 -> -0.0005826175532 | V27: Delta
A28: 1989 | B28: 1.52 | C28: 21.4 | D28: 0.04672897196 | E28: 2004 | F28: 1.99 | G28: 2009 | H28: 2.19 | I28: 22.4 | Q28: =Q27/Q25 -> 0.04651162791 | U28: =U27/U25 -> -0.01270049752 | V28: % Delta
A29: 1990 | B29: 1.68 | C29: 21.2 | D29: 0.04716981132 | E29: 2005 | F29: 2.34 | G29: 2010 | H29: 2.56 | I29: 22.6 | U29: =U28/Q28 -> -0.2730606967 | V29: Price Elasticity
A30: 1991 | B30: 1.6 | C30: 21.3 | D30: 0.04694835681 | E30: 2006 | F30: 2.56 | G30: 2011 | I30: 22.4
A31: 1992 | B31: 1.55 | C31: 20.8 | D31: 0.04807692308 | E31: 2007 | F31: 2.68 | G31: 2012 | I31: 23.6
A32: 1993 | B32: 1.5 | C32: 20.9 | D32: 0.04784688995 | E32: 2008 | F32: 3.06 | G32: 2013 | I32: 24.1
A33: 1994 | B33: 1.47 | C33: 20.4 | D33: 0.04901960784
A34: 1995 | B34: 1.48 | C34: 20.5 | D34: 0.0487804878
A35: 1996 | B35: 1.55 | C35: 20.4 | D35: 0.04901960784
A36: 1997 | B36: 1.53 | C36: 20.2 | D36: 0.0495049505
A37: 1998 | B37: 1.3 | C37: 20.1 | D37: 0.04975124378
A38: 1999 | B38: 1.41 | C38: 19.7 | D38: 0.05076142132
A39: 2000 | B39: 1.76 | C39: 19.8 | D39: 0.05050505051
A40: 2001 | B40: 1.69 | C40: 19.6 | D40: 0.05102040816
A41: 2002 | B41: 1.56 | C41: 19.5 | D41: 0.05128205128
A42: 2003 | B42: 1.74 | C42: 19.6 | D42: 0.05102040816
A43: 2004 | B43: 1.99 | C43: 19.3 | D43: 0.0518134715
A44: 2005 | B44: 2.34 | C44: 19.9 | D44: 0.05025125628
A45: 2006 | B45: 2.56 | C45: 20.1 | D45: 0.04975124378
A46: 2007 | B46: 2.68 | C46: 20.6 | D46: 0.04854368932
A47: 2008 | B47: 3.06 | C47: 21 | D47: 0.04761904762
A48: 2009 | B48: 2.19 | C48: 22.4 | D48: 0.04464285714
A49: 2010 | B49: 2.56 | C49: 22.6 | D49: 0.04424778761
A50: 2011 | C50: 22.4 | D50: 0.04464285714
A51: 2012 | C51: 23.6 | D51: 0.04237288136
A52: 2013 | C52: 24.1 | D52: 0.04149377593
A53: 2014 | C53: 24.2 | D53: 0.04132231405
